bitfinex/quotes_BTCUSD_20250927
["timestamp","ask_amount","ask_price","bid_price","bid_amount"]
[1758980726847,1.002208,109660.0,109650.0,0.14879186]
[1758980726958,1.002208,109660.0,109650.0,0.54743171]
[1758980727162,1.002208,109660.0,109650.0,0.52919186]
[1758980728196,0.69550558,109660.0,109650.0,0.52919186]
[1758980728838,0.70981301,109660.0,109650.0,0.52919186]
[1758980732851,0.53317284,109660.0,109650.0,0.52919186]
[1758980733053,0.93316301,109660.0,109650.0,0.52919186]
[1758980733252,0.86328701,109660.0,109650.0,0.52919186]
[1758980735300,0.84897958,109660.0,109650.0,0.52919186]
[1758980736447,0.84897958,109660.0,109650.0,0.14879186]
[1758980736667,1.02726826,109660.0,109650.0,0.54727171]
[1758980736877,1.02726826,109660.0,109650.0,0.52903186]
[1758980738301,1.04157569,109660.0,109650.0,0.52903186]
[1758980739051,1.04157569,109660.0,109650.0,0.43395186]
[1758980739309,1.22395759,109660.0,109650.0,0.14879186]
[1758980739512,1.22395759,109660.0,109650.0,0.52899186]
[1758980740277,1.04157569,109660.0,109650.0,0.52899186]
[1758980740725,1.04157569,109660.0,109650.0,0.14879186]
[1758980740940,1.04157569,109660.0,109650.0,0.52911186]
[1758980744695,1.38157569,109660.0,109650.0,0.14879186]
[1758980744895,1.38157569,109660.0,109650.0,0.52907186]
[1758980747188,1.36726826,109660.0,109650.0,0.52907186]
[1758980747594,1.36726826,109660.0,109650.0,0.43399186]
[1758980747803,1.36726826,109660.0,109650.0,0.14879186]
[1758980748019,1.54965016,109660.0,109650.0,0.52919186]
[1758980749375,1.36726826,109660.0,109650.0,0.52919186]
[1758980750190,0.84679643,109660.0,109650.0,0.52919186]
[1758980750386,1.38157569,109660.0,109650.0,0.52919186]
[1758980751553,1.56395759,109660.0,109650.0,0.52919186]
[1758980753204,1.56395759,109660.0,109650.0,0.14879186]
[1758980753419,1.56395759,109660.0,109650.0,0.52907186]
[1758980754329,1.56395759,109660.0,109650.0,0.14879186]
[1758980754576,1.83134722,109660.0,109650.0,0.23063486]
[1758980754792,1.56395759,109660.0,109650.0,0.51591486]
[1758980755451,1.83134722,109660.0,109650.0,0.51591486]
[1758980756521,1.81703979,109660.0,109650.0,0.51591486]
[1758980756739,1.54965016,109660.0,109650.0,0.51591486]
[1758980759423,1.56395781,109660.0,109650.0,0.51591486]
[1758980761158,1.37265454,109660.0,109650.0,0.51591486]
[1758980761374,7.26121081,109660.0,109650.0,0.51591486]
[1758980764000,7.52860044,109660.0,109650.0,0.3933919]
[1758980764408,7.26121081,109660.0,109650.0,0.3933919]
[1758980764606,7.28865538,109660.0,109650.0,0.3933919]
[1758980764788,7.28865538,109660.0,109650.0,0.3913919]
[1758980765189,7.28865538,109660.0,109650.0,0.3893919]
[1758980765796,7.08941579,109660.0,109650.0,0.3893919]
[1758980765966,10.08941579,109660.0,109650.0,0.3893919]
[1758980768766,10.07510814,109660.0,109650.0,0.3893919]
[1758980771772,10.08941599,109660.0,109650.0,0.3893919]
[1758980773695,9.75891358,109660.0,109650.0,0.3893919]
[1758980777324,9.87952383,109660.0,109650.0,0.3893919]
[1758980778815,9.86521598,109660.0,109650.0,0.3893919]
[1758980781702,9.87952383,109660.0,109650.0,0.3893919]
[1758980783918,9.70113757,109660.0,109650.0,0.3893919]
[1758980786657,9.70113757,109660.0,109650.0,0.40768941]
[1758980786892,9.70113757,109660.0,109650.0,0.3893919]
[1758980789868,9.70113757,109660.0,109650.0,0.3896319]
[1758980794060,9.70113757,109660.0,109650.0,0.1041519]
[1758980794264,9.70113757,109660.0,109650.0,0.3896319]
[1758980795824,9.9685272,109660.0,109650.0,0.3896319]
[1758980796030,9.70113757,109660.0,109650.0,0.3896319]
[1758980798422,9.70756361,109660.0,109650.0,0.3896319]
[1758980798646,9.52940001,109660.0,109650.0,0.3896319]
[1758980799848,9.51509216,109660.0,109650.0,0.3896319]
[1758980802698,9.52940026,109660.0,109650.0,0.3896319]
[1758980803515,9.52940026,109660.0,109650.0,0.074]
[1758980803970,9.52940026,109660.0,109650.0,0.18544]
[1758980804918,9.52940026,109660.0,109650.0,0.074]
[1758980805128,9.52940026,109660.0,109650.0,0.35948]
[1758980807509,9.59932116,109660.0,109650.0,0.35948]
[1758980809114,9.58501306,109660.0,109650.0,0.35948]
[1758980812026,9.59932154,109660.0,109650.0,0.35948]
[1758980815912,9.59932154,109660.0,109650.0,0.36164]
[1758980816274,9.58501306,109660.0,109650.0,0.36164]
[1758980818239,9.58501306,109660.0,109650.0,0.36146971]
[1758980819386,9.59932136,109660.0,109650.0,0.36146971]
[1758980828720,9.59932136,109660.0,109650.0,0.07598971]
[1758980828927,9.59932136,109660.0,109650.0,0.35906971]
[1758980834380,9.59932136,109660.0,109650.0,0.35902971]
[1758980835852,9.59931751,109660.0,109650.0,0.35902971]
[1758980836915,9.59931751,109660.0,109650.0,0.36112971]
[1758980840374,9.59931751,109660.0,109650.0,0.36431971]
[1758980841301,9.42454737,109660.0,109650.0,0.36431971]
[1758980858752,9.87036643,109660.0,109650.0,0.36431971]
[1758980859357,9.87036643,109660.0,109650.0,0.36112971]
[1758980863326,9.66839891,109660.0,109650.0,0.36112971]
[1758980864662,9.66839891,109660.0,109650.0,0.36431971]
[1758980865443,9.40092067,109660.0,109650.0,0.36431971]
[1758980867173,8.69065315,109660.0,109650.0,0.36431971]
[1758980867378,8.11007015,109660.0,109650.0,0.36431971]
[1758980867940,5.39020291,109660.0,109650.0,0.36431971]
[1758980868154,4.69354471,109660.0,109650.0,0.36431971]
[1758980868353,4.87592661,109660.0,109650.0,0.36431971]
[1758980868530,5.14340485,109660.0,109650.0,0.36431971]
[1758980869975,4.96102295,109660.0,109650.0,0.36431971]
[1758980870312,3.99737981,109660.0,109650.0,0.39447161]
[1758980870674,3.96993524,109660.0,109650.0,0.39415161]
[1758980871119,3.96993524,109660.0,109650.0,0.10927161]
[1758980871239,3.96993524,109660.0,109650.0,0.39415161]
[1758980874238,3.62993524,109660.0,109650.0,0.39415161]
[1758980874827,3.89741348,109660.0,109650.0,0.39415161]
[1758980875535,3.89741348,109660.0,109650.0,0.10927161]
[1758980875782,3.89741348,109660.0,109650.0,0.39411161]
[1758980877563,3.89741348,109660.0,109650.0,0.10927161]
[1758980877769,3.362457,109660.0,109650.0,0.41235146]
[1758980877979,0.864366,109660.0,109650.0,0.39411161]
[1758980878181,1.13184424,109660.0,109650.0,0.39411161]
[1758980879066,0.66228524,109660.0,109650.0,0.39411161]
[1758980879300,0.58405024,109660.0,109650.0,0.39411161]
[1758980879901,0.58405024,109660.0,109650.0,0.39811161]
[1758980880104,0.316572,109660.0,109650.0,0.58051015]
[1758980880239,0.58405024,109660.0,109650.0,0.58051015]
[1758980881085,0.92405024,109660.0,109650.0,0.11327161]
[1758980881424,0.92405024,109660.0,109650.0,0.39811161]
[1758980881623,0.92405024,109660.0,109650.0,0.49315161]
[1758980883421,0.92405024,109660.0,109650.0,0.39811161]
[1758980883621,0.92405024,109660.0,109650.0,0.49315161]
[1758980885154,0.656572,109660.0,109650.0,0.67555015]
[1758980885357,0.92405024,109660.0,109650.0,0.49315161]
[1758980887360,0.92405024,109660.0,109650.0,0.11327161]
[1758980887614,0.656572,109660.0,109650.0,0.69379]
[1758980887819,1.03424324,109660.0,109650.0,0.49315161]
[1758980888234,1.09487024,109660.0,109650.0,0.67555015]
[1758980889046,1.09487024,109660.0,109650.0,0.49315161]
[1758980889589,1.09487024,109660.0,109650.0,0.11327161]
[1758980889790,1.09487024,109660.0,109650.0,0.13151146]
[1758980890038,1.09487024,109660.0,109650.0,0.51139146]
[1758980890242,1.09487024,109660.0,109650.0,0.49315161]
[1758980891636,0.34,109660.0,109650.0,0.29567015]
[1758980891820,0.34,109660.0,109650.0,0.49315161]
[1758980892025,0.34,109660.0,109650.0,0.70299201]
[1758980892255,0.34,109660.0,109650.0,0.14071347]
[1758980892456,0.60747824,109660.0,109650.0,0.14071347]
[1758980892664,0.60747824,109660.0,109650.0,0.52059347]
[1758980892859,0.60747824,109660.0,109650.0,0.42555347]
[1758980893062,0.60747824,109660.0,109650.0,0.52059347]
[1758980893270,0.34,109660.0,109650.0,0.52059347]
[1758980893744,0.60747824,109660.0,109650.0,0.14071347]
[1758980893894,0.60747824,109660.0,109650.0,0.52059347]
[1758980896546,0.41231359,109660.0,109650.0,0.52059347]
[1758980896909,0.44986014,109660.0,109650.0,0.13542347]
[1758980897124,0.44986014,109660.0,109650.0,0.51526347]
[1758980898331,0.46416755,109660.0,109650.0,0.51526347]
[1758980898758,0.46416755,109660.0,109650.0,0.13542347]
[1758980898946,0.46416755,109660.0,109650.0,0.51526347]
[1758980900720,0.46416755,109660.0,109650.0,0.42022347]
[1758980900925,0.80416755,109660.0,109650.0,0.51526347]
[1758980901714,5.44433179,109660.0,109650.0,0.10798161]
[1758980901890,4.90937531,109660.0,109650.0,0.39278161]
[1758980902081,5.44433179,109660.0,109650.0,0.39278161]
[1758980902276,5.44433179,109660.0,109650.0,0.10798161]
[1758980902611,5.44433179,109660.0,109650.0,0.39278161]
[1758980902809,5.44146351,109660.0,109650.0,0.39278161]
[1758980903020,5.44146351,109660.0,109650.0,0.10798161]
[1758980903221,5.44146351,109660.0,109650.0,0.39278161]
[1758980912103,5.09002438,109660.0,109650.0,0.39278161]
[1758980912833,5.09002438,109660.0,109650.0,0.39491161]
[1758980914193,5.43002438,109660.0,109650.0,0.39491161]
[1758980914696,5.4443322,109660.0,109650.0,0.39491161]
[1758980915342,5.4443322,109660.0,109650.0,0.39793161]
[1758980915637,5.43002438,109660.0,109650.0,0.39793161]
[1758980916437,5.43002438,109660.0,109650.0,0.39278161]
[1758980918574,5.44433225,109660.0,109650.0,0.39278161]
[1758980918790,5.261902,109660.0,109650.0,0.39278161]
[1758980920729,5.08350673,109660.0,109650.0,0.39278161]
[1758980921582,5.08350673,109660.0,109650.0,0.10798161]
[1758980921793,5.08350673,109660.0,109650.0,0.39278161]
[1758980924247,5.06919886,109660.0,109650.0,0.39278161]
[1758980926932,5.06919886,109660.0,109650.0,0.10798161]
[1758980927146,5.06919886,109660.0,109650.0,0.39274161]
[1758980927492,5.08350678,109660.0,109650.0,0.39274161]
[1758980930241,4.87856207,109660.0,109650.0,0.39274161]
[1758980934733,4.52200086,109660.0,109650.0,0.39473161]
[1758980934933,4.87856207,109660.0,109650.0,0.39473161]
[1758980935134,4.52200086,109660.0,109650.0,0.39774161]
[1758980935439,4.87856207,109660.0,109650.0,0.39774161]
[1758980937214,4.86425415,109660.0,109650.0,0.39774161]
[1758980937952,4.50769294,109660.0,109650.0,0.39774161]
[1758980938157,4.86425415,109660.0,109650.0,0.39774161]
[1758980939794,4.50769294,109660.0,109650.0,0.39774161]
[1758980940000,4.87856218,109660.0,109650.0,0.39774161]
[1758980943080,4.87856218,109660.0,109650.0,0.39473161]
[1758980943276,4.52200097,109660.0,109650.0,0.39473161]
[1758980943479,4.87856218,109660.0,109650.0,0.39473161]
[1758980944139,4.87856218,109660.0,109650.0,0.39774161]
[1758980946323,4.52200097,109660.0,109650.0,0.39774161]
[1758980946494,4.87856218,109660.0,109650.0,0.39774161]
[1758980946711,4.52200097,109660.0,109650.0,0.39774161]
[1758980947076,4.87856218,109660.0,109650.0,0.39774161]
[1758980954447,4.86425415,109660.0,109650.0,0.39774161]
[1758980956488,4.50769294,109660.0,109650.0,0.39774161]
[1758980956671,4.86425415,109660.0,109650.0,0.39774161]
[1758980957718,4.86425415,109660.0,109650.0,0.39274161]
[1758980957854,4.88498391,109660.0,109650.0,0.39274161]
[1758980959750,4.88498391,109660.0,109650.0,0.39485161]
[1758980961233,4.5284227,109660.0,109650.0,0.39485161]
[1758980961435,4.88498391,109660.0,109650.0,0.39802161]
[1758980964396,4.87067585,109660.0,109650.0,0.39802161]
[1758980967544,4.88498381,109660.0,109650.0,0.39802161]
[1758980972329,4.70260191,109660.0,109650.0,0.39802161]
[1758980972772,4.88498381,109660.0,109650.0,0.39802161]
[1758980974123,4.87856211,109660.0,109650.0,0.39802161]
[1758980974765,4.69618021,109660.0,109650.0,0.39802161]
[1758980977507,4.68187225,109660.0,109650.0,0.39802161]
[1758980980438,4.69618021,109660.0,109650.0,0.39802161]
[1758980980885,4.87856211,109660.0,109650.0,0.39802161]
[1758980981867,4.87856211,109660.0,109650.0,0.39270161]
[1758980982060,4.87856211,109660.0,109650.0,0.39468161]
[1758980982249,4.87856211,109660.0,109650.0,0.39785161]
[1758980982739,5.05687472,109660.0,109650.0,0.39785161]
[1758980984510,4.83756063,109660.0,109650.0,0.39785161]
[1758980985112,4.82325267,109660.0,109650.0,0.39785161]
[1758980988421,4.83756061,109660.0,109650.0,0.39785161]
[1758980992159,4.65517871,109660.0,109650.0,0.39785161]
[1758980992351,4.83756061,109660.0,109650.0,0.39785161]
[1758980994137,4.40234376,109660.0,109650.0,0.39785161]
[1758980994329,3.50259276,109660.0,109650.0,0.39785161]
[1758980996236,3.48828482,109660.0,109650.0,0.39785161]
[1758980997691,3.67066672,109660.0,109650.0,0.39785161]
[1758980999358,3.68497457,109660.0,109650.0,0.39302161]
[1758980999563,3.68497457,109660.0,109650.0,0.39306161]
[1758980999987,3.37241944,109660.0,109650.0,0.39306161]
[1758981000192,3.37241944,109660.0,109650.0,0.10798161]
[1758981000315,3.37241944,109660.0,109650.0,0.39366161]
[1758981000528,3.37241944,109660.0,109650.0,0.10798161]
[1758981000725,3.37241944,109660.0,109650.0,0.37390161]
[1758981001319,2.83754562,109660.0,109650.0,0.37390161]
[1758981001532,3.37241944,109660.0,109650.0,0.37390161]
[1758981001918,3.71241944,109660.0,109650.0,0.37390161]
[1758981003959,3.71241944,109660.0,109650.0,0.10798161]
[1758981004298,3.71241944,109660.0,109650.0,0.39362161]
[1758981005034,3.68497457,109660.0,109650.0,0.39362161]
[1758981006078,3.67066672,109660.0,109650.0,0.39362161]
[1758981009141,3.68497459,109660.0,109650.0,0.39362161]
[1758981009865,3.68497459,109660.0,109650.0,0.39350161]
[1758981010024,3.68497459,109660.0,109650.0,0.39346161]
[1758981011044,3.15010077,109660.0,109650.0,0.11314161]
[1758981011270,3.68497459,109660.0,109650.0,0.39866161]
[1758981011676,3.48443777,109660.0,109650.0,0.39866161]
[1758981013489,3.51188264,109660.0,109650.0,0.39866161]
[1758981015167,3.49757477,109660.0,109650.0,0.39866161]
[1758981017026,3.31519287,109660.0,109650.0,0.39866161]
[1758981017164,0.60743691,109660.0,109650.0,0.39866161]
[1758981017621,0.87487382,109660.0,109650.0,0.14058158]
[1758981017823,1.94426282,109660.0,109650.0,0.14058158]
[1758981017979,1.94426282,109660.0,109650.0,0.42658158]
[1758981018160,1.95857034,109660.0,109650.0,0.42666158]
[1758981019031,1.95857034,109660.0,109650.0,0.14058158]
[1758981019302,1.95857034,109660.0,109650.0,0.42666158]
[1758981019485,1.95857034,109660.0,109650.0,0.14058158]
[1758981019685,1.95857034,109660.0,109650.0,0.42666158]
[1758981025653,1.94426282,109660.0,109650.0,0.42666158]
[1758981028557,1.95857015,109660.0,109650.0,0.42666158]
[1758981029837,2.14095205,109660.0,109650.0,0.42666158]
[1758981030002,2.14095205,109660.0,109650.0,0.14058158]
[1758981030403,2.14095205,109660.0,109650.0,0.42642158]
[1758981030604,2.14095205,109660.0,109650.0,0.14058158]
[1758981030924,2.14095205,109660.0,109650.0,0.42642158]
[1758981031124,2.14095205,109660.0,109650.0,0.14058158]
[1758981031333,2.14095205,109660.0,109650.0,0.42642158]
[1758981032887,2.14095205,109660.0,109650.0,0.14058158]
[1758981033034,2.14095205,109660.0,109650.0,0.42642158]
[1758981034822,1.42369633,109660.0,109650.0,0.42642158]
[1758981035046,2.14095205,109660.0,109650.0,0.42642158]
[1758981035249,2.12664472,109660.0,109650.0,0.42642158]
[1758981036823,2.12664472,109660.0,109650.0,0.14058158]
[1758981037059,2.12664472,109660.0,109650.0,0.42646158]
[1758981037461,1.94426282,109660.0,109650.0,0.42646158]
[1758981037723,1.9717046,109660.0,109650.0,0.42646158]
[1758981038350,1.45113815,109660.0,109650.0,0.42646158]
[1758981038575,1.98601197,109660.0,109650.0,0.42646158]
[1758981038714,2.16839387,109660.0,109650.0,0.42646158]
[1758981039751,1.98601197,109660.0,109650.0,0.42646158]
[1758981040834,2.16839387,109660.0,109650.0,0.42646158]
[1758981042261,1.98601197,109660.0,109650.0,0.42646158]
[1758981042712,1.80766491,109660.0,109650.0,0.42646158]
[1758981043034,1.99004681,109660.0,109650.0,0.42646158]
[1758981043842,1.63352005,109660.0,109650.0,0.42646158]
[1758981044036,1.99004681,109660.0,109650.0,0.42646158]
[1758981045414,1.97573944,109660.0,109650.0,0.42646158]
[1758981048452,1.99004678,109660.0,109650.0,0.42646158]
[1758981051866,1.99004678,109660.0,109650.0,0.42126158]
[1758981052115,1.99004678,109660.0,109650.0,0.10798161]
[1758981052300,1.99004678,109660.0,109650.0,0.39386161]
[1758981053939,1.99004678,109660.0,109650.0,0.39902161]
[1758981055137,1.65004678,109660.0,109650.0,0.39902161]
[1758981057330,1.99004678,109660.0,109650.0,0.39902161]
[1758981058686,1.78764759,109660.0,109650.0,0.39902161]
[1758981058872,4.48569678,109660.0,109650.0,0.39902161]
[1758981059071,4.23989678,109660.0,109650.0,0.39902161]
[1758981059271,4.23989678,109660.0,109650.0,0.41731912]
[1758981059507,4.23989678,109660.0,109650.0,0.39902161]
[1758981060289,3.85431402,109660.0,109650.0,0.39902161]
[1758981060467,4.21084078,109660.0,109650.0,0.39902161]
[1758981061902,4.19653344,109660.0,109650.0,0.39902161]
[1758981063171,4.18463744,109660.0,109650.0,0.39902161]
[1758981064800,4.19894489,109660.0,109650.0,0.39902161]
[1758981066516,4.19894489,109660.0,109650.0,0.39597161]
[1758981072838,4.17150311,109660.0,109650.0,0.39597161]
[1758981078023,4.17150311,109660.0,109650.0,0.39386161]
[1758981078397,3.97537404,109660.0,109650.0,0.39386161]
[1758981078596,6.58299011,109660.0,109650.0,0.39386161]
[1758981078802,6.26004711,109660.0,109650.0,0.39386161]
[1758981084538,6.24573966,109660.0,109650.0,0.39386161]
[1758981085095,6.24573966,109660.0,109650.0,0.39581161]
[1758981087708,6.2600472,109660.0,109650.0,0.39581161]
[1758981094427,6.2600472,109660.0,109650.0,0.39525161]
[1758981094637,6.2600472,109660.0,109650.0,0.39330161]
[1758981094855,6.2600472,109660.0,109650.0,0.10798161]
[1758981095025,6.2600472,109660.0,109650.0,0.39326161]
[1758981095456,6.28749207,109660.0,109650.0,0.39326161]
[1758981095849,6.28749207,109660.0,109650.0,0.39126161]
[1758981096054,6.28749207,109660.0,109650.0,0.38926161]
[1758981097856,6.57281207,109660.0,109650.0,0.38926161]
[1758981099014,6.28749207,109660.0,109650.0,0.38926161]
[1758981099219,6.57281207,109660.0,109650.0,0.38926161]
[1758981100898,7.04513654,109660.0,109650.0,0.07382971]
[1758981101326,6.98840178,109660.0,109650.0,0.07382971]
[1758981101878,6.98848178,109660.0,109650.0,0.07382971]
[1758981102075,7.01278223,109660.0,109650.0,0.07382971]
[1758981104260,7.0270916,109660.0,109650.0,0.07382971]
[1758981104672,7.91961174,109660.0,109650.0,0.07382971]
[1758981105515,8.00832321,109660.0,109650.0,0.07382971]
[1758981106616,8.00836321,109660.0,109650.0,0.07382971]
[1758981106764,7.72292321,109660.0,109650.0,0.07382971]
[1758981106973,8.00832321,109660.0,109650.0,0.07382971]
[1758981108854,7.49738799,109660.0,109650.0,0.07382971]
[1758981109092,7.87786799,109660.0,109650.0,0.07382971]
[1758981109302,7.78915652,109660.0,109650.0,0.07382971]
[1758981114238,7.69411652,109660.0,109650.0,0.07382971]
[1758981114464,7.78919652,109660.0,109650.0,0.07382971]
[1758981114888,7.40867652,109660.0,109650.0,0.07382971]
[1758981115041,7.78915652,109660.0,109650.0,0.07382971]
[1758981115244,7.47390595,109660.0,109650.0,0.07382971]
[1758981115499,7.74495658,109660.0,109650.0,0.07382971]
[1758981115648,7.84003658,109660.0,109650.0,0.07382971]
[1758981118219,7.84002226,109660.0,109650.0,0.07382971]
[1758981118444,7.8543321,109660.0,109650.0,0.07382971]
[1758981125381,7.84002226,109660.0,109650.0,0.07382971]
[1758981125684,7.03723543,109660.0,109650.0,0.07382971]
[1758981128234,6.65679543,109660.0,109650.0,0.07382971]
[1758981128442,6.67110545,109660.0,109650.0,0.07382971]
[1758981128654,7.05142545,109660.0,109650.0,0.07382971]
[1758981129152,6.67110545,109660.0,109650.0,0.07382971]
[1758981129276,7.05138545,109660.0,109650.0,0.07382971]
[1758981132397,6.67110545,109660.0,109650.0,0.07382971]
[1758981132707,7.05138545,109660.0,109650.0,0.07382971]
[1758981135300,6.67110545,109660.0,109650.0,0.07382971]
[1758981135590,6.65679543,109660.0,109650.0,0.07382971]
[1758981135754,7.03699543,109660.0,109650.0,0.07382971]
[1758981137752,6.65679543,109660.0,109650.0,0.07382971]
[1758981137961,7.03699543,109660.0,109650.0,0.07382971]
[1758981138643,7.05130534,109660.0,109650.0,0.07382971]
[1758981139153,6.82434676,109660.0,109650.0,0.07382971]
[1758981139349,9.82434676,109660.0,109650.0,0.07382971]
[1758981139528,9.80018058,109660.0,109650.0,0.07382971]
[1758981140407,9.7937717,109660.0,109650.0,0.07382971]
[1758981142127,9.8001955,109660.0,109650.0,0.07382971]
[1758981142312,9.7937717,109660.0,109650.0,0.07382971]
[1758981142702,9.80019553,109660.0,109650.0,0.07382971]
[1758981143245,9.77589512,109660.0,109650.0,0.07382971]
[1758981145946,9.59364562,109660.0,109650.0,0.07382971]
[1758981146326,9.77602752,109660.0,109650.0,0.07382971]
[1758981146940,10.57881435,109660.0,109650.0,0.07382971]
[1758981157233,10.57239048,109660.0,109650.0,0.07382971]
[1758981157582,10.57881734,109660.0,109650.0,0.07382971]
[1758981164598,9.68681026,109660.0,109650.0,0.07382971]
[1758981165917,9.68681026,109660.0,109650.0,0.07590971]
[1758981166258,9.68681026,109660.0,109650.0,0.07382971]
[1758981168334,9.68681026,109660.0,109650.0,0.06442971]
[1758981168864,9.67250035,109660.0,109650.0,0.06442971]
[1758981172052,9.68681065,109660.0,109650.0,0.06442971]
[1758981175223,9.67250035,109660.0,109650.0,0.06442971]
[1758981176223,9.68681065,109660.0,109650.0,0.06442971]
[1758981179548,9.68681065,109660.0,109650.0,0.06641971]
[1758981184848,8.59304407,109660.0,109650.0,0.06641971]
[1758981185052,8.97324407,109660.0,109650.0,0.06953971]
[1758981185380,9.68681065,109660.0,109650.0,0.06641971]
[1758981185582,9.29230035,109660.0,109650.0,0.06641971]
[1758981185763,9.67250035,109660.0,109650.0,0.06641971]
[1758981186682,9.29230035,109660.0,109650.0,0.06641971]
[1758981186827,9.67250035,109660.0,109650.0,0.06641971]
[1758981187822,9.29230035,109660.0,109650.0,0.06641971]
[1758981188274,9.67250035,109660.0,109650.0,0.06641971]
[1758981188667,9.6868106,109660.0,109650.0,0.06641971]
[1758981188795,9.6868106,109660.0,109650.0,0.06945971]
[1758981189149,9.6868106,109660.0,109650.0,0.06442971]
[1758981189574,9.6868106,109660.0,109650.0,0.06644971]
[1758981190793,9.6868106,109660.0,109650.0,0.06948971]
[1758981194012,9.6867706,109660.0,109650.0,0.06948971]
[1758981198496,9.46194637,109660.0,109650.0,0.06948971]
[1758981202086,9.46194637,109660.0,109650.0,0.06644971]
[1758981205848,9.80194637,109660.0,109650.0,0.06644971]
[1758981206053,9.80194637,109660.0,109650.0,0.06960971]
[1758981206895,9.80671955,109660.0,109650.0,0.06960971]
[1758981207375,9.61739926,109660.0,109650.0,0.06960971]
[1758981208003,9.60308901,109660.0,109650.0,0.06960971]
[1758981208198,9.53785958,109660.0,109650.0,0.06960971]
[1758981211088,9.5521697,109660.0,109650.0,0.06960971]
[1758981212498,9.53785958,109660.0,109650.0,0.06960971]
[1758981215245,9.5521697,109660.0,109650.0,0.06960971]
[1758981216562,9.53785958,109660.0,109650.0,0.06960971]
[1758981217067,9.18107629,109660.0,109650.0,0.06960971]
[1758981219673,9.19538641,109660.0,109650.0,0.06960971]
[1758981221619,9.19538641,109660.0,109650.0,0.06644971]
[1758981221763,9.28409788,109660.0,109650.0,0.06644971]
[1758981222309,9.2793247,109660.0,109650.0,0.06644971]
[1758981225175,9.26501458,109660.0,109650.0,0.06644971]
[1758981226729,9.71087718,109660.0,109650.0,0.06644971]
[1758981227832,9.7251873,109660.0,109650.0,0.06644971]
[1758981230521,9.7251873,109660.0,109650.0,0.06953971]
[1758981231180,9.7251873,109660.0,109650.0,0.06644971]
[1758981235188,9.71087718,109660.0,109650.0,0.06644971]
[1758981238322,9.7251873,109660.0,109650.0,0.06644971]
[1758981245365,9.71087718,109660.0,109650.0,0.06644971]
[1758981246291,9.62216571,109660.0,109650.0,0.06644971]
[1758981248188,9.6364758,109660.0,109650.0,0.06644971]
[1758981249112,9.63647487,109660.0,109650.0,0.06644971]
[1758981249745,9.62216478,109660.0,109650.0,0.06644971]
[1758981252396,9.63647487,109660.0,109650.0,0.06644971]
[1758981252833,9.44697192,109660.0,109650.0,0.06644971]
[1758981253265,9.06681192,109660.0,109650.0,0.06644971]
[1758981253476,9.44689192,109660.0,109650.0,0.06644971]
[1758981254004,9.06681192,109660.0,109650.0,0.06644971]
[1758981254202,9.44689192,109660.0,109650.0,0.06644971]
[1758981256889,9.43258183,109660.0,109650.0,0.06644971]
[1758981257724,9.43258194,109660.0,109650.0,0.06644971]
[1758981258850,9.44313239,109660.0,109650.0,0.06644971]
[1758981259563,9.45744248,109660.0,109650.0,0.06644971]
[1758981261825,9.45744248,109660.0,109650.0,0.06952971]
[1758981264261,9.44685203,109660.0,109650.0,0.06952971]
[1758981264623,9.44685203,109660.0,109650.0,0.06644971]
[1758981275764,9.28436772,109660.0,109650.0,0.06644971]
[1758981285624,8.90432772,109660.0,109650.0,0.06644971]
[1758981285829,9.28428772,109660.0,109650.0,0.06644971]
[1758981288712,8.83835918,109660.0,109650.0,0.06644971]
[1758981293651,8.83835918,109660.0,109650.0,0.06954971]
[1758981309475,8.83827918,109660.0,109650.0,0.06954971]
[1758981310042,8.45839918,109660.0,109650.0,0.06954971]
[1758981310190,8.83827918,109660.0,109650.0,0.06954971]
[1758981313185,8.88732652,109660.0,109650.0,0.06442971]
[1758981313406,8.91162697,109660.0,109650.0,0.06442971]
[1758981316087,8.86257963,109660.0,109650.0,0.06442971]
[1758981318145,8.86257865,109660.0,109650.0,0.06442971]
[1758981323760,8.86257868,109660.0,109650.0,0.06442971]
[1758981326094,8.48269868,109660.0,109650.0,0.06442971]
[1758981326407,8.86253868,109660.0,109650.0,0.06442971]
[1758981326931,8.48269868,109660.0,109650.0,0.06442971]
[1758981327104,8.86253868,109660.0,109650.0,0.06442971]
[1758981328362,8.68789715,109660.0,109650.0,0.06442971]
[1758981331513,8.77660862,109660.0,109650.0,0.06442971]
[1758981336935,8.7813818,109660.0,109650.0,0.06442971]
[1758981337369,8.80601473,109660.0,109650.0,0.06442971]
[1758981341145,8.51569593,109660.0,109650.0,0.06442971]
[1758981342066,8.51569594,109660.0,109650.0,0.06442971]
[1758981347562,8.46676256,109660.0,109650.0,0.06442971]
[1758981348616,8.91267148,109660.0,109650.0,0.06442971]
[1758981349616,8.94018927,109660.0,109650.0,0.06442971]
[1758981353595,9.02890074,109660.0,109650.0,0.06442971]
[1758981357623,8.93374074,109660.0,109650.0,0.06442971]
[1758981357771,9.02882074,109660.0,109650.0,0.06442971]
[1758981360681,9.02404654,109660.0,109650.0,0.06442971]
[1758981361476,9.02404654,109660.0,109650.0,0.06659971]
[1758981361617,8.92892654,109660.0,109650.0,0.06659971]
[1758981361816,9.02400654,109660.0,109650.0,0.06659971]
[1758981367185,8.93529507,109660.0,109650.0,0.06659971]
[1758981379974,8.55557507,109660.0,109650.0,0.06957971]
[1758981380186,8.93525507,109660.0,109650.0,0.06957971]
[1758981390073,8.90773728,109660.0,109650.0,0.06957971]
[1758981390275,8.93525507,109660.0,109650.0,0.06957971]
[1758981395270,8.959888,109660.0,109650.0,0.06442971]
[1758981395451,9.04859947,109660.0,109650.0,0.06442971]
[1758981396119,9.04859947,109660.0,109650.0,0.06641971]
[1758981396995,9.02108168,109660.0,109650.0,0.06641971]
[1758981401119,8.93237021,109660.0,109650.0,0.06641971]
[1758981407632,8.74772688,109660.0,109650.0,0.06641971]
[1758981408734,8.30181964,109660.0,109650.0,0.06641971]
[1758981410230,8.32933678,109660.0,109650.0,0.06641971]
[1758981424630,8.14808147,109660.0,109650.0,0.06641971]
[1758981443316,8.23679294,109660.0,109650.0,0.06641971]
[1758981444116,8.23679422,109660.0,109650.0,0.06641971]
[1758981446375,8.23679422,109660.0,109650.0,0.06934971]
[1758981448319,7.76840275,109660.0,109650.0,0.06934971]
[1758981448520,8.12040561,109660.0,109650.0,0.06934971]
[1758981448718,7.74088561,109660.0,109650.0,0.06934971]
[1758981448923,8.00065268,109660.0,109650.0,0.06934971]
[1758981453160,8.00065199,109660.0,109650.0,0.06934971]
[1758981453530,8.02816913,109660.0,109650.0,0.06934971]
[1758981456539,8.12324913,109660.0,109650.0,0.06934971]
[1758981460134,8.02816913,109660.0,109650.0,0.06934971]
[1758981460455,8.12324913,109660.0,109650.0,0.06934971]
[1758981466064,8.12324913,109660.0,109650.0,0.06641971]
[1758981467576,7.94706229,109660.0,109650.0,0.06641971]
[1758981467775,7.94706185,109660.0,109650.0,0.06641971]
[1758981468329,7.77155163,109660.0,109650.0,0.06641971]
[1758981470542,8.21742665,109660.0,109650.0,0.06641971]
[1758981475763,8.18990951,109660.0,109650.0,0.06641971]
[1758981475947,8.21742665,109660.0,109650.0,0.06641971]
[1758981478686,8.21742665,109660.0,109650.0,0.06442971]
[1758981479106,8.30613812,109660.0,109650.0,0.06442971]